[Event "Titled Tuesday Blitz August 24 2021"]
[White "Amgalantengis, Enkh-Amgalan"]
[Black "Sadhwani, Raunak"]
[WhiteFideId "4903536"]
[BlackFideId "35093487"]
[WhiteElo "1716"]
[BlackElo "2514"]
[Result "0-1"]
[Round "01"]
[TimeControl "180+1"]
[Date "2021.08.24"]
[WhiteClock "0:02:24"]
[BlackClock "0:02:30"]

1. Nf3 {[%clk 0:03:00]}  c5 {[%clk 0:02:59]} 2. d4 {[%clk 0:03:01]}  cxd4 {[%clk 0:02:59]} 3. Qxd4 {[%clk 0:03:01]}  Nc6 {[%clk 0:02:59]} 4. Qh4 {[%clk 0:03:02]}  d5 {[%clk 0:02:58]} 5. Nc3 {[%clk 0:03:01]}  d4 {[%clk 0:02:58]} 6. Ne4 {[%clk 0:03:00]}  Nf6 {[%clk 0:02:57]} 7. Nxf6+ {[%clk 0:03:00]}  exf6 {[%clk 0:02:58]} 8. Bd2 {[%clk 0:02:58]}  Be7 {[%clk 0:02:55]} 9. O-O-O {[%clk 0:02:57]}  O-O {[%clk 0:02:56]} 10. e3 {[%clk 0:02:58]}  dxe3 {[%clk 0:02:55]} 11. Bxe3 {[%clk 0:02:58]}  Qa5 {[%clk 0:02:55]} 12. Bd3 {[%clk 0:02:58]}  f5 {[%clk 0:02:52]} 13. Bg5 {[%clk 0:02:58]}  Bxg5+ {[%clk 0:02:47]} 14. Nxg5 {[%clk 0:02:58]}  h6 {[%clk 0:02:48]} 15. Nf3 {[%clk 0:02:48]}  Qxa2 {[%clk 0:02:48]} 16. g4 {[%clk 0:02:38]}  fxg4 {[%clk 0:02:44]} 17. Rhg1 {[%clk 0:02:34]}  Qa1+ {[%clk 0:02:35]} 18. Kd2 {[%clk 0:02:33]}  Qxb2 {[%clk 0:02:32]} 19. Rxg4 {[%clk 0:02:30]}  Bxg4 {[%clk 0:02:30]} 20. Qxg4 {[%clk 0:02:31]}  Qb4+ {[%clk 0:02:31]} 21. Qxb4 {[%clk 0:02:32]}  Nxb4 {[%clk 0:02:32]} 22. Be4 {[%clk 0:02:31]}  Rad8+ {[%clk 0:02:32]} 23. Bd3 {[%clk 0:02:30]}  Nxd3 {[%clk 0:02:31]} 24. cxd3 {[%clk 0:02:31]}  Rd5 {[%clk 0:02:32]} 25. d4 {[%clk 0:02:30]}  Rfd8 {[%clk 0:02:33]} 26. Ke3 {[%clk 0:02:30]}  b5 {[%clk 0:02:33]} 27. Rc1 {[%clk 0:02:31]}  b4 {[%clk 0:02:33]} 28. Rc7 {[%clk 0:02:30]}  Rb5 {[%clk 0:02:33]} 29. Ne5 {[%clk 0:02:29]}  b3 {[%clk 0:02:30]} 30. Rc5 {[%clk 0:02:24]}  Rxc5 {[%clk 0:02:29]} 31. dxc5 {[%clk 0:02:24]}  b2 {[%clk 0:02:30]} 32. Nc6 {[%clk 0:02:24]}  Re8+ {[%clk 0:02:30]} 0-1


[Site "https://www.chess.com"]

[Event "Titled Tuesday Blitz August 24 2021"]
[White "Anuj Shrivatri"]
[Black "Leve, Nitai"]
[WhiteFideId "35070924"]
[BlackFideId "2006898"]
[WhiteElo "2038"]
[BlackElo "2144"]
[Result "1-0"]
[Round "01"]
[TimeControl "180+1"]
[Date "2021.08.24"]
[WhiteClock "0:01:37"]
[BlackClock "0:00:17"]

1. d4 {[%clk 0:03:00]}  Nf6 {[%clk 0:02:59]} 2. c4 {[%clk 0:03:00]}  g6 {[%clk 0:02:59]} 3. Nc3 {[%clk 0:03:00]}  Bg7 {[%clk 0:02:59]} 4. e4 {[%clk 0:03:00]}  d6 {[%clk 0:02:59]} 5. Nf3 {[%clk 0:02:59]}  O-O {[%clk 0:02:58]} 6. Be2 {[%clk 0:03:00]}  c5 {[%clk 0:02:58]} 7. O-O {[%clk 0:02:59]}  cxd4 {[%clk 0:02:57]} 8. Nxd4 {[%clk 0:02:59]}  Nc6 {[%clk 0:02:57]} 9. Be3 {[%clk 0:02:59]}  Bd7 {[%clk 0:02:24]} 10. h3 {[%clk 0:02:58]}  Rc8 {[%clk 0:02:23]} 11. Nb3 {[%clk 0:02:55]}  Na5 {[%clk 0:02:17]} 12. Nxa5 {[%clk 0:02:48]}  Qxa5 {[%clk 0:02:18]} 13. Qd2 {[%clk 0:02:44]}  Rfe8 {[%clk 0:01:30]} 14. Rab1 {[%clk 0:02:41]}  a6 {[%clk 0:00:47]} 15. b4 {[%clk 0:02:25]}  Qc7 {[%clk 0:00:47]} 16. Rfc1 {[%clk 0:02:22]}  b6 {[%clk 0:00:45]} 17. Bd4 {[%clk 0:02:15]}  Qb7 {[%clk 0:00:45]} 18. Bf3 {[%clk 0:02:10]}  Bc6 {[%clk 0:00:41]} 19. Nd5 {[%clk 0:02:10]}  Nxd5 {[%clk 0:00:36]} 20. exd5 {[%clk 0:02:10]}  Bd7 {[%clk 0:00:33]} 21. Bxg7 {[%clk 0:02:08]}  Kxg7 {[%clk 0:00:34]} 22. Qd4+ {[%clk 0:02:09]}  Kg8 {[%clk 0:00:33]} 23. h4 {[%clk 0:01:57]}  h5 {[%clk 0:00:31]} 24. Rc3 {[%clk 0:01:51]}  Rc7 {[%clk 0:00:31]} 25. Rbb3 {[%clk 0:01:46]}  b5 {[%clk 0:00:29]} 26. c5 {[%clk 0:01:46]}  dxc5 {[%clk 0:00:28]} 27. bxc5 {[%clk 0:01:45]}  Bf5 {[%clk 0:00:28]} 28. d6 {[%clk 0:01:44]}  Rc6 {[%clk 0:00:26]} 29. Re3 {[%clk 0:01:40]}  Be6 {[%clk 0:00:21]} 30. Rxe6 {[%clk 0:01:38]}  fxe6 {[%clk 0:00:20]} 31. Qe4 {[%clk 0:01:38]}  Kf7 {[%clk 0:00:17]} 32. Qxc6 {[%clk 0:01:37]} 1-0


[Site "https://www.chess.com"]

[Event "Titled Tuesday Blitz August 24 2021"]
[White "Balakrishnan, Praveen"]
[Black "Titichoca Daza, Daniel"]
[WhiteFideId "2064871"]
[BlackFideId "3309550"]
[WhiteElo "2237"]
[BlackElo "1910"]
[Result "1-0"]
[Round "01"]
[TimeControl "180+1"]
[Date "2021.08.24"]
[WhiteClock "0:00:14"]
[BlackClock "0:00:02"]

1. e4 {[%clk 0:03:00]}  c5 {[%clk 0:02:56]} 2. Nf3 {[%clk 0:02:57]}  d6 {[%clk 0:02:54]} 3. d4 {[%clk 0:02:53]}  cxd4 {[%clk 0:02:55]} 4. Nxd4 {[%clk 0:02:53]}  Nf6 {[%clk 0:02:55]} 5. Nc3 {[%clk 0:02:51]}  a6 {[%clk 0:02:56]} 6. Be2 {[%clk 0:02:50]}  e5 {[%clk 0:02:48]} 7. Nb3 {[%clk 0:02:48]}  Be7 {[%clk 0:02:45]} 8. O-O {[%clk 0:02:44]}  O-O {[%clk 0:02:41]} 9. Be3 {[%clk 0:02:43]}  b5 {[%clk 0:02:33]} 10. a4 {[%clk 0:02:38]}  b4 {[%clk 0:02:32]} 11. Nd5 {[%clk 0:02:38]}  Be6 {[%clk 0:01:54]} 12. Bb6 {[%clk 0:02:31]}  Qd7 {[%clk 0:01:42]} 13. Nc7 {[%clk 0:02:31]}  Nxe4 {[%clk 0:01:31]} 14. Nxa8 {[%clk 0:02:24]}  Qc6 {[%clk 0:01:22]} 15. Ba5 {[%clk 0:02:19]}  Qxa8 {[%clk 0:01:10]} 16. Bxb4 {[%clk 0:02:19]}  Nc6 {[%clk 0:01:06]} 17. Ba3 {[%clk 0:02:19]}  Rd8 {[%clk 0:00:55]} 18. Bf3 {[%clk 0:02:14]}  f5 {[%clk 0:00:54]} 19. Qd3 {[%clk 0:01:53]}  Bf6 {[%clk 0:00:34]} 20. Bxe4 {[%clk 0:01:46]}  fxe4 {[%clk 0:00:35]} 21. Qxe4 {[%clk 0:01:46]}  d5 {[%clk 0:00:27]} 22. Qe2 {[%clk 0:01:43]}  d4 {[%clk 0:00:25]} 23. Nc5 {[%clk 0:01:39]}  Bd5 {[%clk 0:00:24]} 24. Ne4 {[%clk 0:01:38]}  Be7 {[%clk 0:00:18]} 25. Bxe7 {[%clk 0:01:36]}  Nxe7 {[%clk 0:00:19]} 26. Rfe1 {[%clk 0:01:36]}  Ng6 {[%clk 0:00:17]} 27. f3 {[%clk 0:01:27]}  Nf4 {[%clk 0:00:16]} 28. Qf2 {[%clk 0:01:23]}  Rb8 {[%clk 0:00:12]} 29. Nc5 {[%clk 0:00:55]}  Ng6 {[%clk 0:00:05]} 30. Nd7 {[%clk 0:00:43]}  Re8 {[%clk 0:00:04]} 31. Nb6 {[%clk 0:00:43]}  Qc6 {[%clk 0:00:04]} 32. Nxd5 {[%clk 0:00:43]}  Qxd5 {[%clk 0:00:05]} 33. c3 {[%clk 0:00:38]}  d3 {[%clk 0:00:02]} 34. Rad1 {[%clk 0:00:37]}  Nf4 {[%clk 0:00:02]} 35. Qe3 {[%clk 0:00:33]}  Qc4 {[%clk 0:00:02]} 36. a5 {[%clk 0:00:26]}  Ne2+ {[%clk 0:00:02]} 37. Kh1 {[%clk 0:00:23]}  e4 {[%clk 0:00:03]} 38. fxe4 {[%clk 0:00:19]}  Rxe4 {[%clk 0:00:03]} 39. Qxd3 {[%clk 0:00:15]}  Ng3+ {[%clk 0:00:02]} 40. Qxg3 {[%clk 0:00:14]} 1-0


[Site "https://www.chess.com"]

[Event "Titled Tuesday Blitz August 24 2021"]
[White "Barrionuevo, Pablo"]
[Black "Wagh Suyog"]
[WhiteFideId "110566"]
[BlackFideId "25071688"]
[WhiteElo "2250"]
[BlackElo "2219"]
[Result "0-1"]
[Round "01"]
[TimeControl "180+1"]
[Date "2021.08.24"]
[WhiteClock "0:00:35"]
[BlackClock "0:00:50"]

1. d4 {[%clk 0:02:52]}  d6 {[%clk 0:02:59]} 2. e4 {[%clk 0:02:51]}  g6 {[%clk 0:02:59]} 3. Nc3 {[%clk 0:02:52]}  Bg7 {[%clk 0:03:00]} 4. f4 {[%clk 0:02:52]}  c6 {[%clk 0:02:58]} 5. Nf3 {[%clk 0:02:52]}  d5 {[%clk 0:02:58]} 6. e5 {[%clk 0:02:52]}  h5 {[%clk 0:02:58]} 7. Bd3 {[%clk 0:02:51]}  Nh6 {[%clk 0:02:59]} 8. O-O {[%clk 0:02:50]}  Bf5 {[%clk 0:02:59]} 9. Be2 {[%clk 0:02:44]}  Nd7 {[%clk 0:02:54]} 10. h3 {[%clk 0:02:43]}  Nf8 {[%clk 0:02:52]} 11. Be3 {[%clk 0:02:42]}  Ne6 {[%clk 0:02:50]} 12. Qd2 {[%clk 0:02:35]}  Qd7 {[%clk 0:02:48]} 13. Rfd1 {[%clk 0:02:31]}  Rd8 {[%clk 0:02:46]} 14. b4 {[%clk 0:02:30]}  Be4 {[%clk 0:02:43]} 15. a4 {[%clk 0:02:17]}  Nf5 {[%clk 0:02:41]} 16. Bf2 {[%clk 0:02:04]}  Bh6 {[%clk 0:02:38]} 17. Ng5 {[%clk 0:02:03]}  Nfg7 {[%clk 0:02:13]} 18. Nxe6 {[%clk 0:01:59]}  Nxe6 {[%clk 0:02:12]} 19. Be3 {[%clk 0:01:58]}  h4 {[%clk 0:02:08]} 20. Bg4 {[%clk 0:01:57]}  Bf5 {[%clk 0:02:07]} 21. Be2 {[%clk 0:01:52]}  Kf8 {[%clk 0:01:54]} 22. a5 {[%clk 0:01:51]}  a6 {[%clk 0:01:48]} 23. Na4 {[%clk 0:01:51]}  Be4 {[%clk 0:01:46]} 24. Kh2 {[%clk 0:01:49]}  Bf5 {[%clk 0:01:46]} 25. Rac1 {[%clk 0:01:44]}  Rg8 {[%clk 0:01:46]} 26. Nc5 {[%clk 0:01:38]}  Nxc5 {[%clk 0:01:45]} 27. bxc5 {[%clk 0:01:37]}  Be6 {[%clk 0:01:38]} 28. Rb1 {[%clk 0:01:28]}  Qc7 {[%clk 0:01:38]} 29. Rb6 {[%clk 0:01:26]}  Bc8 {[%clk 0:01:38]} 30. Rdb1 {[%clk 0:01:21]}  f6 {[%clk 0:01:38]} 31. Bg4 {[%clk 0:01:17]}  f5 {[%clk 0:01:19]} 32. Be2 {[%clk 0:01:16]}  Bg7 {[%clk 0:01:20]} 33. Qe1 {[%clk 0:01:12]}  Rh8 {[%clk 0:01:19]} 34. Bf2 {[%clk 0:01:10]}  Bh6 {[%clk 0:01:18]} 35. Be3 {[%clk 0:01:08]}  Bg7 {[%clk 0:01:14]} 36. R1b3 {[%clk 0:01:05]}  e6 {[%clk 0:01:14]} 37. Bf2 {[%clk 0:01:03]}  Qe7 {[%clk 0:01:14]} 38. c4 {[%clk 0:00:57]}  dxc4 {[%clk 0:01:11]} 39. Bxc4 {[%clk 0:00:57]}  Bh6 {[%clk 0:01:08]} 40. Be3 {[%clk 0:00:53]}  g5 {[%clk 0:01:08]} 41. fxg5 {[%clk 0:00:52]}  Bxg5 {[%clk 0:01:09]} 42. Bxg5 {[%clk 0:00:51]}  Qxg5 {[%clk 0:01:09]} 43. Qf2 {[%clk 0:00:49]}  Rg8 {[%clk 0:01:07]} 44. Rf3 {[%clk 0:00:43]}  Rxd4 {[%clk 0:00:53]} 45. Bf1 {[%clk 0:00:35]}  Rd2 {[%clk 0:00:50]} 0-1


[Site "https://www.chess.com"]

[Event "Titled Tuesday Blitz August 24 2021"]
[White "ChessMood"]
[Black "Dobre, Claudiu-Cristian"]
[BlackFideId "1211854"]
[WhiteElo "2803"]
[BlackElo "2259"]
[Result "1-0"]
[Round "01"]
[TimeControl "180+1"]
[Date "2021.08.24"]
[WhiteClock "0:01:37"]
[BlackClock "0:00:02"]

1. Nf3 {[%clk 0:03:00]}  d5 {[%clk 0:02:57]} 2. g3 {[%clk 0:03:01]}  Nf6 {[%clk 0:02:56]} 3. Bg2 {[%clk 0:03:01]}  Bg4 {[%clk 0:02:56]} 4. O-O {[%clk 0:03:01]}  e6 {[%clk 0:02:53]} 5. d4 {[%clk 0:03:00]}  Nbd7 {[%clk 0:02:51]} 6. Nbd2 {[%clk 0:02:59]}  Be7 {[%clk 0:02:44]} 7. Re1 {[%clk 0:02:57]}  O-O {[%clk 0:02:35]} 8. e4 {[%clk 0:02:56]}  dxe4 {[%clk 0:02:35]} 9. Nxe4 {[%clk 0:02:56]}  Nxe4 {[%clk 0:02:29]} 10. Rxe4 {[%clk 0:02:57]}  Bf5 {[%clk 0:02:27]} 11. Re1 {[%clk 0:02:57]}  c6 {[%clk 0:02:24]} 12. c3 {[%clk 0:02:57]}  h6 {[%clk 0:02:07]} 13. Qb3 {[%clk 0:02:55]}  Qb6 {[%clk 0:02:06]} 14. Nd2 {[%clk 0:02:55]}  Rfd8 {[%clk 0:01:45]} 15. Nc4 {[%clk 0:02:53]}  Qa6 {[%clk 0:01:14]} 16. Bf1 {[%clk 0:02:51]}  b5 {[%clk 0:01:12]} 17. Ne3 {[%clk 0:02:49]}  Bg6 {[%clk 0:01:08]} 18. Bd2 {[%clk 0:02:23]}  Nb6 {[%clk 0:01:03]} 19. Qd1 {[%clk 0:02:18]}  Qb7 {[%clk 0:00:58]} 20. Ng4 {[%clk 0:02:17]}  Bd6 {[%clk 0:00:49]} 21. Qc1 {[%clk 0:02:02]}  Nd5 {[%clk 0:00:44]} 22. Bg2 {[%clk 0:01:56]}  Bf5 {[%clk 0:00:41]} 23. Ne5 {[%clk 0:01:56]}  Bxe5 {[%clk 0:00:41]} 24. Rxe5 {[%clk 0:01:57]}  Qe7 {[%clk 0:00:26]} 25. b3 {[%clk 0:01:56]}  Rac8 {[%clk 0:00:16]} 26. a4 {[%clk 0:01:55]}  a6 {[%clk 0:00:13]} 27. axb5 {[%clk 0:01:54]}  axb5 {[%clk 0:00:13]} 28. Re1 {[%clk 0:01:48]}  Qd6 {[%clk 0:00:12]} 29. Qa3 {[%clk 0:01:48]}  Qxa3 {[%clk 0:00:11]} 30. Rxa3 {[%clk 0:01:49]}  b4 {[%clk 0:00:12]} 31. cxb4 {[%clk 0:01:48]}  Ra8 {[%clk 0:00:12]} 32. Ra5 {[%clk 0:01:47]}  Rab8 {[%clk 0:00:10]} 33. Bxd5 {[%clk 0:01:46]}  exd5 {[%clk 0:00:08]} 34. f3 {[%clk 0:01:43]}  Re8 {[%clk 0:00:06]} 35. Rxe8+ {[%clk 0:01:35]}  Rxe8 {[%clk 0:00:06]} 36. Kf2 {[%clk 0:01:36]}  Bd3 {[%clk 0:00:05]} 37. Be3 {[%clk 0:01:37]}  Bb5 {[%clk 0:00:05]} 38. Ra7 {[%clk 0:01:37]}  Rf8 {[%clk 0:00:03]} 39. g4 {[%clk 0:01:37]}  f6 {[%clk 0:00:03]} 40. h4 {[%clk 0:01:37]}  Rf7 {[%clk 0:00:04]} 41. Ra8+ {[%clk 0:01:37]}  Kh7 {[%clk 0:00:04]} 42. Ra1 {[%clk 0:01:37]}  f5 {[%clk 0:00:03]} 43. g5 {[%clk 0:01:37]}  hxg5 {[%clk 0:00:03]} 44. Bxg5 {[%clk 0:01:37]}  g6 {[%clk 0:00:03]} 45. Bf4 {[%clk 0:01:37]}  Re7 {[%clk 0:00:02]} 46. Be5 {[%clk 0:01:37]} 1-0


[Site "https://www.chess.com"]

[Event "Titled Tuesday Blitz August 24 2021"]
[White "DKSystem2"]
[Black "Wagner, Dennis"]
[BlackFideId "24650684"]
[WhiteElo "2421"]
[BlackElo "2355"]
[Result "0-1"]
[Round "01"]
[TimeControl "180+1"]
[Date "2021.08.24"]
[WhiteClock "0:00:09"]
[BlackClock "0:00:40"]

1. e4 {[%clk 0:03:00]}  c5 {[%clk 0:02:59]} 2. Nf3 {[%clk 0:03:00]}  d6 {[%clk 0:03:00]} 3. c3 {[%clk 0:02:59]}  Nf6 {[%clk 0:03:00]} 4. h3 {[%clk 0:02:59]}  g6 {[%clk 0:03:00]} 5. Bd3 {[%clk 0:02:59]}  Bg7 {[%clk 0:03:00]} 6. O-O {[%clk 0:03:00]}  O-O {[%clk 0:03:00]} 7. Bc2 {[%clk 0:03:00]}  b5 {[%clk 0:02:59]} 8. d4 {[%clk 0:02:59]}  Bb7 {[%clk 0:02:58]} 9. Re1 {[%clk 0:02:59]}  Nbd7 {[%clk 0:02:55]} 10. a4 {[%clk 0:02:54]}  b4 {[%clk 0:02:54]} 11. a5 {[%clk 0:02:51]}  Rb8 {[%clk 0:02:53]} 12. Bf4 {[%clk 0:02:45]}  Nh5 {[%clk 0:02:22]} 13. Bh2 {[%clk 0:02:44]}  e5 {[%clk 0:02:23]} 14. dxe5 {[%clk 0:02:39]}  Nxe5 {[%clk 0:02:10]} 15. Nxe5 {[%clk 0:02:27]}  dxe5 {[%clk 0:02:07]} 16. cxb4 {[%clk 0:02:18]}  cxb4 {[%clk 0:02:06]} 17. Nd2 {[%clk 0:02:09]}  Ba6 {[%clk 0:02:06]} 18. Bb3 {[%clk 0:02:02]}  Qd4 {[%clk 0:01:56]} 19. Nf3 {[%clk 0:01:51]}  Qxb2 {[%clk 0:01:48]} 20. Rb1 {[%clk 0:01:51]}  Qc3 {[%clk 0:01:46]} 21. Qd6 {[%clk 0:01:49]}  Bd3 {[%clk 0:01:35]} 22. Bxe5 {[%clk 0:01:24]}  Bxe5 {[%clk 0:01:32]} 23. Nxe5 {[%clk 0:01:24]}  Bxb1 {[%clk 0:01:23]} 24. Rxb1 {[%clk 0:01:25]}  Rbe8 {[%clk 0:00:50]} 25. f4 {[%clk 0:00:19]}  Nxf4 {[%clk 0:00:45]} 26. Nd7 {[%clk 0:00:14]}  Qg3 {[%clk 0:00:40]} 27. Rb2 {[%clk 0:00:10]}  Nxh3+ {[%clk 0:00:39]} 28. Kh1 {[%clk 0:00:09]}  Qxd6 {[%clk 0:00:40]} 0-1


[Site "https://www.chess.com"]

[Event "Titled Tuesday Blitz August 24 2021"]
[White "Darini, Pouria"]
[Black "Hajaj, Nimrod"]
[WhiteFideId "12502200"]
[BlackFideId "30933781"]
[WhiteElo "2489"]
[BlackElo "2405"]
[Result "1-0"]
[Round "01"]
[TimeControl "180+1"]
[Date "2021.08.24"]
[WhiteClock "0:00:07"]
[BlackClock "0:00:16"]

1. e4 {[%clk 0:02:59]}  c5 {[%clk 0:02:58]} 2. Nf3 {[%clk 0:02:59]}  d6 {[%clk 0:02:57]} 3. d4 {[%clk 0:02:59]}  cxd4 {[%clk 0:02:57]} 4. Nxd4 {[%clk 0:03:00]}  Nf6 {[%clk 0:02:57]} 5. Nc3 {[%clk 0:03:01]}  Nc6 {[%clk 0:02:57]} 6. Bg5 {[%clk 0:03:00]}  e6 {[%clk 0:02:56]} 7. Qd2 {[%clk 0:03:01]}  a6 {[%clk 0:02:56]} 8. O-O-O {[%clk 0:03:01]}  Bd7 {[%clk 0:02:56]} 9. f4 {[%clk 0:02:56]}  Be7 {[%clk 0:02:54]} 10. Nf3 {[%clk 0:02:55]}  b5 {[%clk 0:02:52]} 11. Bxf6 {[%clk 0:02:54]}  gxf6 {[%clk 0:02:51]} 12. f5 {[%clk 0:02:55]}  Qb6 {[%clk 0:02:42]} 13. Qh6 {[%clk 0:02:38]}  O-O-O {[%clk 0:02:35]} 14. Bd3 {[%clk 0:02:11]}  Kb8 {[%clk 0:02:27]} 15. Qh5 {[%clk 0:02:01]}  Rhf8 {[%clk 0:02:26]} 16. Kb1 {[%clk 0:01:55]}  Rc8 {[%clk 0:02:20]} 17. Rhe1 {[%clk 0:01:16]}  Qc5 {[%clk 0:02:06]} 18. g4 {[%clk 0:00:43]}  Bd8 {[%clk 0:01:39]} 19. Qxh7 {[%clk 0:00:40]}  Ba5 {[%clk 0:01:37]} 20. fxe6 {[%clk 0:00:39]}  Bxe6 {[%clk 0:01:34]} 21. Nd5 {[%clk 0:00:36]}  Bxe1 {[%clk 0:01:21]} 22. Rxe1 {[%clk 0:00:36]}  Ne5 {[%clk 0:01:01]} 23. Nxe5 {[%clk 0:00:31]}  fxe5 {[%clk 0:01:00]} 24. Ne3 {[%clk 0:00:26]}  Rh8 {[%clk 0:00:54]} 25. Qg7 {[%clk 0:00:26]}  Rxh2 {[%clk 0:00:51]} 26. Qg5 {[%clk 0:00:24]}  a5 {[%clk 0:00:44]} 27. Rc1 {[%clk 0:00:19]}  Rh3 {[%clk 0:00:36]} 28. Nf5 {[%clk 0:00:14]}  f6 {[%clk 0:00:27]} 29. Qd2 {[%clk 0:00:13]}  b4 {[%clk 0:00:22]} 30. b3 {[%clk 0:00:06]}  a4 {[%clk 0:00:19]} 31. Bf1 {[%clk 0:00:07]}  Rh1 {[%clk 0:00:16]} 32. Qxd6+ {[%clk 0:00:03]}  Qxd6 {[%clk 0:00:16]} 33. Nxd6 {[%clk 0:00:04]}  Rg8 {[%clk 0:00:16]} 34. bxa4 {[%clk 0:00:03]}  Rxg4 {[%clk 0:00:15]} 35. Bd3 {[%clk 0:00:03]}  Rgg1 {[%clk 0:00:15]} 36. Rxg1 {[%clk 0:00:03]}  Rxg1+ {[%clk 0:00:16]} 37. Kb2 {[%clk 0:00:04]}  Kc7 {[%clk 0:00:15]} 38. Nb5+ {[%clk 0:00:04]}  Kb6 {[%clk 0:00:15]} 39. a3 {[%clk 0:00:04]}  bxa3+ {[%clk 0:00:15]} 40. Kxa3 {[%clk 0:00:05]}  Rb1 {[%clk 0:00:15]} 41. Nc3 {[%clk 0:00:05]}  Rh1 {[%clk 0:00:14]} 42. Kb4 {[%clk 0:00:05]}  Rh4 {[%clk 0:00:14]} 43. a5+ {[%clk 0:00:06]}  Kc7 {[%clk 0:00:14]} 44. Kc5 {[%clk 0:00:06]}  Rh8 {[%clk 0:00:13]} 45. a6 {[%clk 0:00:06]}  Rc8 {[%clk 0:00:13]} 46. Nb5+ {[%clk 0:00:04]}  Kd7+ {[%clk 0:00:13]} 47. Kb6 {[%clk 0:00:05]}  Rb8+ {[%clk 0:00:14]} 48. Ka7 {[%clk 0:00:03]}  Rc8 {[%clk 0:00:14]} 49. Kb7 {[%clk 0:00:03]}  Bc4 {[%clk 0:00:12]} 50. Bxc4 {[%clk 0:00:02]}  Rxc4 {[%clk 0:00:13]} 51. a7 {[%clk 0:00:03]}  Ra4 {[%clk 0:00:13]} 52. a8=Q {[%clk 0:00:03]}  Rxa8 {[%clk 0:00:13]} 53. Kxa8 {[%clk 0:00:04]}  Kc6 {[%clk 0:00:13]} 54. Nc3 {[%clk 0:00:02]}  Kc5 {[%clk 0:00:13]} 55. Ne2 {[%clk 0:00:02]}  Kc4 {[%clk 0:00:13]} 56. Kb7 {[%clk 0:00:03]}  Kc5 {[%clk 0:00:12]} 57. Kc7 {[%clk 0:00:03]}  f5 {[%clk 0:00:13]} 58. exf5 {[%clk 0:00:03]}  e4 {[%clk 0:00:14]} 59. f6 {[%clk 0:00:04]}  e3 {[%clk 0:00:14]} 60. f7 {[%clk 0:00:04]}  Kd5 {[%clk 0:00:15]} 61. f8=Q {[%clk 0:00:05]}  Ke4 {[%clk 0:00:16]} 62. Qe7+ {[%clk 0:00:05]}  Kf3 {[%clk 0:00:16]} 63. Qe5 {[%clk 0:00:06]}  Kf2 {[%clk 0:00:16]} 64. Nd4 {[%clk 0:00:05]}  Ke1 {[%clk 0:00:16]} 65. Qxe3+ {[%clk 0:00:06]}  Kd1 {[%clk 0:00:16]} 66. Qe2+ {[%clk 0:00:05]}  Kc1 {[%clk 0:00:16]} 67. c4 {[%clk 0:00:05]}  Kb1 {[%clk 0:00:16]} 68. Qc2+ {[%clk 0:00:06]}  Ka1 {[%clk 0:00:16]} 69. Nb3# {[%clk 0:00:07]} 1-0


[Site "https://www.chess.com"]

[Event "Titled Tuesday Blitz August 24 2021"]
[White "Demidov, Mikhail"]
[Black "Moon_stone123"]
[WhiteFideId "4197143"]
[WhiteElo "2559"]
[BlackElo "2424"]
[Result "1-0"]
[Round "01"]
[TimeControl "180+1"]
[Date "2021.08.24"]
[WhiteClock "0:01:26"]
[BlackClock "0:00:10"]

1. Nf3 {[%clk 0:03:00]}  Nf6 {[%clk 0:02:56]} 2. g3 {[%clk 0:03:00]}  g6 {[%clk 0:02:56]} 3. b3 {[%clk 0:03:00]}  Bg7 {[%clk 0:02:56]} 4. Bb2 {[%clk 0:03:00]}  O-O {[%clk 0:02:56]} 5. Bg2 {[%clk 0:03:00]}  d6 {[%clk 0:02:56]} 6. d4 {[%clk 0:03:00]}  Nc6 {[%clk 0:02:41]} 7. O-O {[%clk 0:02:59]}  e5 {[%clk 0:02:39]} 8. dxe5 {[%clk 0:03:00]}  Ng4 {[%clk 0:02:39]} 9. Qd2 {[%clk 0:02:59]}  Ngxe5 {[%clk 0:02:37]} 10. c4 {[%clk 0:02:58]}  Nxf3+ {[%clk 0:02:29]} 11. exf3 {[%clk 0:02:59]}  Be6 {[%clk 0:02:18]} 12. Bxg7 {[%clk 0:02:58]}  Kxg7 {[%clk 0:02:19]} 13. Nc3 {[%clk 0:02:58]}  Qf6 {[%clk 0:02:15]} 14. Rad1 {[%clk 0:02:57]}  Rfe8 {[%clk 0:02:14]} 15. Ne4 {[%clk 0:02:56]}  Qe7 {[%clk 0:02:11]} 16. Rfe1 {[%clk 0:02:56]}  f5 {[%clk 0:01:59]} 17. Nc3 {[%clk 0:02:46]}  Qf6 {[%clk 0:01:56]} 18. f4 {[%clk 0:02:45]}  Bf7 {[%clk 0:01:46]} 19. h4 {[%clk 0:02:37]}  Rxe1+ {[%clk 0:01:43]} 20. Rxe1 {[%clk 0:02:38]}  Rf8 {[%clk 0:01:35]} 21. Nd5 {[%clk 0:02:34]}  Bxd5 {[%clk 0:01:34]} 22. cxd5 {[%clk 0:02:35]}  Nb8 {[%clk 0:01:28]} 23. Qa5 {[%clk 0:02:33]}  Na6 {[%clk 0:01:16]} 24. Bf1 {[%clk 0:02:31]}  Rf7 {[%clk 0:01:07]} 25. Bxa6 {[%clk 0:02:30]}  bxa6 {[%clk 0:01:08]} 26. Qxa6 {[%clk 0:02:29]}  Qd4 {[%clk 0:01:06]} 27. Qc4 {[%clk 0:02:25]}  Qd2 {[%clk 0:01:07]} 28. Re2 {[%clk 0:02:23]}  Qd1+ {[%clk 0:01:07]} 29. Kg2 {[%clk 0:02:23]}  h5 {[%clk 0:01:07]} 30. Re6 {[%clk 0:02:13]}  Kh7 {[%clk 0:00:59]} 31. Re8 {[%clk 0:02:12]}  Qd2 {[%clk 0:00:55]} 32. Rc8 {[%clk 0:02:05]}  Kh6 {[%clk 0:00:50]} 33. a4 {[%clk 0:02:02]}  a5 {[%clk 0:00:49]} 34. Re8 {[%clk 0:01:57]}  Rg7 {[%clk 0:00:45]} 35. Rh8+ {[%clk 0:01:54]}  Rh7 {[%clk 0:00:45]} 36. Rxh7+ {[%clk 0:01:54]}  Kxh7 {[%clk 0:00:46]} 37. Qxc7+ {[%clk 0:01:54]}  Kg8 {[%clk 0:00:46]} 38. Qxd6 {[%clk 0:01:54]}  Qd3 {[%clk 0:00:44]} 39. Qe6+ {[%clk 0:01:47]}  Kh8 {[%clk 0:00:44]} 40. d6 {[%clk 0:01:47]}  g5 {[%clk 0:00:38]} 41. hxg5 {[%clk 0:01:44]}  h4 {[%clk 0:00:37]} 42. gxh4 {[%clk 0:01:44]}  Kg7 {[%clk 0:00:23]} 43. d7 {[%clk 0:01:41]}  Qd1 {[%clk 0:00:17]} 44. f3 {[%clk 0:01:35]}  Qd2+ {[%clk 0:00:16]} 45. Kg3 {[%clk 0:01:34]}  Qd1 {[%clk 0:00:16]} 46. Qe7+ {[%clk 0:01:25]}  Kg6 {[%clk 0:00:14]} 47. h5+ {[%clk 0:01:25]}  Kxh5 {[%clk 0:00:10]} 48. Qh7# {[%clk 0:01:26]} 1-0


[Site "https://www.chess.com"]